bitfinex/quotes_ETHUSD_20260307
["timestamp","ask_amount","ask_price","bid_price","bid_amount"]
[1772875825407,0.46414679,1984.1,1983.8,0.001]
[1772875825711,0.002,1984.0,1983.8,0.001]
[1772875827091,0.46414679,1984.0,1983.8,0.001]
[1772875829291,0.002,1984.0,1983.8,0.49356133]
[1772875830301,0.46414679,1984.0,1983.8,0.001]
[1772875830703,0.46414679,1984.0,1983.7,0.001]
[1772875831296,0.46214679,1983.9,1983.7,0.001]
[1772875837521,0.47289268,1983.8,1983.7,0.001]
[1772875838314,0.47489268,1983.8,1983.7,0.001]
[1772875841724,1.73510036,1983.8,1983.7,0.001]
[1772875842107,0.47289268,1983.7,1983.5,0.001]
[1772875843227,0.47289268,1983.6,1983.5,0.001]
[1772875846927,0.47489268,1983.8,1983.5,0.001]
[1772875848718,0.002,1983.8,1983.5,0.47404418]
[1772875850234,0.002,1983.8,1983.6,0.47304418]
[1772875851129,0.002,1983.8,1983.6,0.47404418]
[1772875853136,0.002,1983.8,1983.7,0.47304418]
[1772875853826,0.002,1983.8,1983.7,1.73331539]
[1772875854209,0.002,1983.8,1983.7,0.47304418]
[1772875855235,0.002,1983.8,1983.7,1.73331539]
[1772875856308,0.002,1983.8,1983.7,0.47304418]
[1772875857406,0.002,1983.8,1983.7,1.73331539]
[1772875857837,0.002,1983.9,1983.8,0.47304418]
[1772875858835,0.002,1984.1,1983.9,0.49400323]
[1772875861032,0.002,1984.1,1984.0,0.49400323]
[1772875868744,0.002,1984.4,1984.1,0.47890337]
[1772875873246,0.002,1984.4,1984.2,1.738857]
[1772875873934,0.002,1984.4,1984.3,0.47890337]
[1772875874138,0.002,1984.6,1984.3,0.47890337]
[1772875875439,0.002,1984.6,1984.5,0.47890337]
[1772875875644,0.002,1984.8,1984.6,0.47890337]
[1772875885752,0.002,1984.8,1984.7,0.47890337]
[1772875886349,0.45442139,1985.0,1984.7,0.47890337]
[1772875887652,0.45442139,1985.0,1984.7,0.47990337]
[1772875888152,0.002,1984.8,1984.7,0.47990337]
[1772875892959,0.002,1984.8,1984.7,1.73953958]
[1772875893126,0.002,1984.8,1984.7,0.47990337]
[1772875894159,0.002,1984.8,1984.7,1.73953958]
[1772875896361,0.002,1985.1,1984.8,0.48000066]
[1772875896528,0.002,1985.3,1984.9,0.48000066]
[1772875897445,0.38222935,1985.4,1984.8,0.48000066]
[1772875898267,0.38222935,1985.4,1985.0,0.48000066]
[1772875898450,0.38222935,1985.4,1985.2,0.48000066]
[1772875900177,0.002,1985.3,1984.9,1.73950995]
[1772875900477,0.002,1985.3,1985.0,1.7394441]
[1772875900845,0.16157921,1985.3,1984.8,0.48100066]
[1772875901198,0.16157921,1985.3,1984.8,0.001]
[1772875901944,0.16157921,1985.3,1984.8,1.74056176]
[1772875902271,0.16157921,1985.3,1984.9,0.48000066]
[1772875902449,1.42086797,1985.3,1984.9,0.48000066]
[1772875902651,0.15957921,1985.2,1984.9,0.48000066]
[1772875903273,0.15957921,1985.2,1984.9,1.7394964]
[1772875903474,0.002,1985.3,1985.0,0.48000066]
[1772875904372,0.002,1985.3,1985.0,1.73943251]
[1772875904552,0.002,1985.3,1985.1,0.48000066]
[1772875908853,0.002,1985.3,1985.2,0.48000066]
[1772875910676,0.002,1985.3,1985.0,1.73941257]
[1772875911590,0.002,1985.3,1985.1,0.48000066]
[1772875912276,0.002,1985.3,1985.2,0.001]
[1772875912798,0.002,1985.3,1985.2,0.48100066]
[1772875918797,0.16157921,1985.3,1985.2,0.001]
[1772875919384,0.002,1985.3,1985.2,0.001]
[1772875921395,0.16157921,1985.3,1985.0,0.001]
[1772875923391,0.15857921,1985.2,1985.0,0.001]
[1772875925596,0.16057921,1985.2,1985.0,0.001]
[1772875926178,1.4179616,1985.1,1985.0,0.001]
[1772875927297,0.15857921,1985.1,1985.0,0.001]
[1772875928813,1.26132025,1985.2,1985.0,0.001]
[1772875930111,1.41989946,1985.2,1985.0,0.001]
[1772875935993,0.16057921,1985.2,1985.0,0.001]
[1772875936493,0.002,1985.2,1985.0,0.001]
[1772875937025,0.002,1985.2,1985.1,0.001]
[1772875937924,1.26131896,1985.2,1985.1,0.001]
[1772875938092,0.16057921,1985.2,1985.1,0.001]
[1772875943734,0.002,1985.2,1985.1,0.001]
[1772875943908,0.002,1985.2,1985.1,0.46889525]
[1772875946025,0.002,1985.2,1985.1,1.72827764]
[1772875946321,0.002,1985.2,1985.1,0.46889525]
[1772875947423,0.002,1985.4,1985.2,0.46789525]
[1772875947996,0.16257921,1985.4,1985.1,0.46889525]
[1772875949026,0.16257921,1985.4,1985.2,0.001]
[1772875951231,0.002,1985.4,1985.2,0.46889525]
[1772875953916,0.002,1985.4,1985.3,0.4540514]
[1772875957832,0.002,1985.4,1985.2,0.4550514]
[1772875959635,0.002,1985.4,1985.2,1.71434715]
[1772875959814,0.002,1985.4,1985.2,0.4550514]
[1772875960651,0.002,1985.4,1985.3,0.4550514]
[1772875961278,0.002,1985.4,1985.3,0.001]
[1772875963820,0.002,1985.6,1985.4,0.4540514]
[1772875965170,0.002,1985.6,1985.5,0.4540514]
[1772875968810,1.42140588,1986.0,1985.6,0.4540514]
[1772875969563,0.16257921,1985.9,1985.6,0.4540514]
[1772875970300,0.16257921,1985.9,1985.4,0.4540514]
[1772875970442,1.42164447,1985.6,1985.3,0.4550514]
[1772875970789,0.16257921,1985.5,1985.2,0.001]
[1772875971380,1.42061896,1985.7,1985.2,0.4550514]
[1772875972682,0.16157921,1985.6,1985.2,0.4550514]
[1772875973059,0.16157921,1985.6,1985.5,0.001]
[1772875973478,0.16157921,1985.8,1985.5,0.001]
[1772875975189,0.16157921,1985.8,1985.0,0.4550514]
[1772875975190,0.46063928,1985.5,1985.0,0.4550514]
[1772875977851,0.46063928,1985.3,1985.0,0.001]
[1772875980087,0.45130737,1985.1,1985.0,0.001]
[1772875980286,1.25931896,1985.2,1985.0,0.001]
[1772875980479,1.25930392,1985.3,1985.0,0.001]
[1772875980794,1.25930392,1985.3,1985.0,0.45470839]
[1772875980993,1.71061129,1985.3,1985.0,0.45470839]
[1772875982799,1.74220243,1985.3,1985.0,0.001]
[1772875985520,0.48289851,1985.2,1985.0,0.001]
[1772875985815,0.48289851,1985.2,1985.1,0.001]
[1772875988019,1.74221747,1985.2,1985.1,0.001]
[1772875997216,1.74421747,1985.2,1985.1,0.001]
[1772875997421,0.002,1985.2,1985.1,0.46110874]
[1772875999224,0.48489851,1985.5,1985.3,0.46010874]
[1772875999225,0.002,1985.5,1985.3,0.46010874]
[1772876007835,0.002,1985.5,1985.1,1.26037052]
[1772876007836,0.48489851,1985.5,1985.1,0.001]
[1772876009528,0.48289851,1985.3,1985.2,0.001]
[1772876010939,0.002,1985.4,1985.2,0.46110874]
[1772876013237,0.002,1985.4,1985.3,0.49386386]
[1772876016143,0.002,1985.4,1985.3,1.75311938]
[1772876016348,0.002,1985.4,1985.3,0.49386386]
[1772876016544,0.002,1985.4,1985.3,1.75311938]
[1772876016929,0.002,1985.7,1985.5,0.49386386]
[1772876019348,0.45014813,1985.6,1985.2,0.001]
[1772876021454,1.70927681,1985.5,1985.2,0.001]
[1772876021925,1.70927681,1985.5,1985.4,0.001]
[1772876022943,0.45014813,1985.4,1985.1,0.001]
[1772876023546,1.70937987,1985.4,1985.1,0.001]
[1772876024359,0.45014813,1985.4,1985.1,0.49486386]
[1772876024657,1.70930825,1985.5,1985.1,0.49486386]
[1772876025222,1.70929974,1985.5,1985.1,0.49486386]
[1772876025639,0.45014813,1985.4,1985.1,0.49486386]
[1772876026354,0.45014813,1985.5,1985.1,0.49486386]
[1772876028040,1.70934023,1985.4,1985.1,0.49486386]
[1772876029361,0.45014813,1985.3,1985.1,0.001]
[1772876030757,1.25931896,1985.2,1985.1,0.001]
[1772876030927,1.70946709,1985.2,1985.0,0.001]
[1772876035057,1.70946709,1985.2,1985.1,0.001]
[1772876035272,0.45014813,1985.1,1984.8,0.001]
[1772876035437,1.70957051,1985.1,1984.8,0.001]
[1772876039260,1.70957051,1985.1,1984.8,0.49942163]
[1772876043908,0.45014813,1985.1,1984.8,0.49942163]
[1772876044043,0.002,1985.3,1984.9,0.48781007]
[1772876044378,1.26129535,1985.3,1984.9,0.48781007]
[1772876044547,1.72549615,1985.3,1984.9,0.48781007]
[1772876046173,0.4662008,1985.3,1984.9,0.48781007]
[1772876046405,0.002,1985.3,1985.0,0.48781007]
[1772876046670,1.26126972,1985.3,1985.0,0.48781007]
[1772876047080,0.4642008,1985.2,1984.9,0.001]
[1772876047575,0.4662008,1985.1,1984.9,0.001]
[1772876054092,1.7256031,1985.1,1984.9,0.001]
[1772876054798,1.72564534,1985.1,1984.9,0.001]
[1772876055368,0.4662008,1985.1,1984.9,0.001]
[1772876058094,0.002,1985.1,1984.9,0.48881007]
[1772876059398,0.4662008,1985.1,1984.9,0.001]
[1772876061012,1.72559926,1985.1,1984.9,0.001]
[1772876061171,0.4642008,1985.0,1984.8,0.001]
[1772876062600,1.72370106,1985.0,1984.8,0.001]
[1772876062893,1.25950026,1985.0,1984.8,0.48881007]
[1772876063098,1.72562169,1985.1,1984.8,0.48881007]
[1772876063797,0.002,1985.1,1984.8,0.48881007]
[1772876064193,1.26138894,1985.1,1984.8,0.48881007]
[1772876064601,1.26138529,1985.1,1984.8,0.48881007]
[1772876064984,1.72558609,1985.1,1984.8,0.48881007]
[1772876067605,1.72558609,1985.1,1984.8,0.001]
[1772876070182,1.26138529,1985.1,1984.8,0.48881007]
[1772876070699,1.26138529,1985.1,1984.9,0.001]
[1772876071201,0.4662008,1985.0,1984.7,0.001]
[1772876071422,0.4662008,1985.0,1984.7,0.48881007]
[1772876071805,0.4662008,1985.0,1984.7,0.001]
[1772876072583,0.4662008,1985.0,1984.7,0.49814047]
[1772876074009,1.72571009,1985.0,1984.7,0.49814047]
[1772876078518,1.72571009,1985.0,1984.7,0.001]
[1772876080024,0.4698338,1984.8,1984.5,0.001]
[1772876080397,1.72945168,1984.8,1984.5,0.001]
[1772876080718,0.4698338,1984.7,1984.5,0.001]
[1772876082416,1.25969968,1984.6,1984.3,0.49714047]
[1772876082620,0.4698338,1984.5,1984.1,1.7581463]
[1772876082820,0.4698338,1984.5,1984.3,0.001]
[1772876084289,1.25969968,1984.6,1984.3,0.001]
[1772876084513,1.72953348,1984.6,1984.3,0.001]
[1772876086718,0.4698338,1984.6,1984.3,0.001]
[1772876086897,1.72953362,1984.6,1984.3,0.49814047]
[1772876092044,0.4698338,1984.5,1984.3,0.001]
[1772876092848,0.4698338,1984.5,1984.1,1.26098072]
[1772876092849,0.4698338,1984.4,1984.1,0.001]
[1772876094771,0.4698338,1984.4,1983.9,0.49714047]
[1772876094772,0.4698338,1984.2,1983.9,0.49714047]
[1772876094967,0.4698338,1984.2,1983.8,0.001]
[1772876095174,0.4698338,1984.2,1983.8,0.49814047]
[1772876095937,0.4698338,1984.2,1984.1,0.001]
[1772876096267,0.4698338,1984.2,1983.8,0.49814047]
[1772876096842,0.4698338,1984.1,1983.8,0.49814047]
[1772876097237,1.25999575,1984.2,1983.9,0.49714047]
[1772876097442,1.72975913,1984.3,1983.9,0.49714047]
[1772876098956,1.25986752,1984.4,1984.0,0.47128471]
[1772876099154,2.69825532,1984.5,1984.0,0.47128471]
[1772876099360,0.46674244,1984.4,1984.0,0.47128471]
[1772876100164,1.72854593,1984.5,1984.0,0.47128471]
[1772876100552,0.46674244,1984.4,1984.0,0.47128471]
[1772876102180,0.46674244,1984.4,1984.0,1.73134116]
[1772876102347,1.26180349,1984.5,1984.1,0.49326536]
[1772876102745,1.71611485,1984.5,1984.1,0.49326536]
[1772876103358,0.45631136,1984.5,1984.1,0.49326536]
[1772876103996,1.71609193,1984.5,1984.1,0.49326536]
[1772876104280,1.71608425,1984.5,1984.1,0.49326536]
[1772876107573,1.71608425,1984.5,1984.2,0.001]
[1772876107751,0.002,1984.4,1984.2,0.001]
[1772876119517,0.45431136,1984.3,1983.8,0.001]
[1772876119717,0.45431136,1984.3,1983.8,0.49426536]
[1772876121312,0.45431136,1984.3,1984.2,0.001]
[1772876121504,0.45431136,1984.3,1984.0,0.001]
[1772876121807,1.71421539,1984.3,1984.0,0.001]
[1772876125606,0.45431136,1984.3,1984.0,0.49426536]
[1772876128087,0.45431136,1984.2,1984.0,0.001]
[1772876128301,0.45431136,1984.2,1983.9,0.001]
[1772876128706,0.45431136,1984.2,1983.9,0.49426536]
[1772876130023,1.71428869,1984.2,1983.9,0.49426536]
[1772876133023,1.71428869,1984.2,1984.0,0.001]
[1772876137320,1.25997733,1984.2,1983.9,0.001]
[1772876137514,0.45782826,1984.1,1983.8,0.001]
[1772876141431,1.25997733,1984.2,1983.8,0.46408214]
[1772876141729,1.71975841,1984.3,1983.8,0.46408214]
[1772876142309,1.7197613,1984.3,1983.8,0.46408214]
[1772876142826,1.26193304,1984.3,1983.8,0.46408214]
[1772876143038,0.45782826,1984.2,1983.8,0.46408214]
[1772876145030,1.71781303,1984.2,1983.9,0.001]
[1772876145330,0.002,1984.1,1983.9,0.001]
[1772876147132,0.002,1984.1,1983.9,0.46408214]
[1772876151719,0.45782826,1984.0,1983.8,0.001]
[1772876152320,0.002,1984.1,1983.9,0.46308214]
[1772876153160,0.002,1984.1,1983.8,0.46408214]
[1772876153333,0.45982826,1984.1,1983.8,0.46408214]
[1772876155533,0.002,1984.2,1983.9,0.46308214]
[1772876155731,0.002,1984.3,1983.9,0.46308214]
[1772876157439,0.002,1984.3,1984.1,0.46308214]
[1772876158243,0.002,1984.3,1984.2,1.72303577]
[1772876160172,0.002,1984.5,1984.3,0.4784882]
[1772876160342,0.002,1984.5,1984.4,0.4784882]
[1772876160747,0.002,1984.5,1984.2,0.4784882]
[1772876163267,0.002,1984.5,1984.3,0.49346821]
[1772876168982,0.49005847,1984.5,1984.1,0.49346821]
[1772876169183,0.49005847,1984.5,1984.0,1.2610698]
[1772876169389,0.49005847,1984.5,1984.0,0.49446821]
[1772876170295,1.74982163,1984.5,1984.4,0.001]
[1772876170602,0.49005847,1984.4,1984.1,0.49346821]
[1772876170760,0.002,1984.4,1984.3,0.001]
[1772876173301,0.49005847,1984.4,1984.3,0.001]
[1772876178389,1.74988511,1984.4,1984.3,0.001]
[1772876185180,0.002,1984.4,1984.3,0.001]
[1772876186400,1.26182664,1984.4,1984.3,0.001]
[1772876187800,0.48805847,1984.3,1984.1,0.001]
[1772876187983,1.74988511,1984.4,1984.1,0.49446821]
[1772876194820,1.74988511,1984.4,1984.2,0.001]
[1772876194984,0.002,1984.3,1984.2,0.001]
[1772876196514,0.46805342,1984.3,1984.0,0.001]
[1772876197405,1.72600705,1984.2,1984.0,0.001]
[1772876199922,0.46605342,1984.1,1983.8,0.001]
[1772876200424,0.46605342,1984.1,1983.8,0.47399205]
[1772876202196,1.72607729,1984.1,1983.8,0.47399205]
[1772876204030,0.46605342,1984.0,1983.8,0.001]
[1772876204241,0.46605342,1984.0,1983.7,0.001]
[1772876204836,1.26014416,1983.9,1983.7,0.47399205]
[1772876206993,1.26014416,1983.9,1983.6,0.001]
[1772876206994,0.46605342,1983.8,1983.6,0.001]
[1772876207201,0.46605342,1983.8,1983.5,0.45699206]
[1772876207826,0.46605342,1983.8,1983.3,0.47299205]
[1772876209149,1.72626377,1983.8,1983.4,1.26046183]
[1772876209308,1.72626377,1983.8,1983.5,0.47299205]
[1772876212737,0.46605342,1983.7,1983.3,0.47299205]
[1772876214142,1.72635506,1983.7,1983.3,0.47299205]
[1772876217934,1.26030164,1983.7,1983.2,1.2605653]
[1772876218235,0.46605342,1983.6,1983.2,0.47299205]
[1772876218616,0.46605342,1983.6,1983.4,0.001]
[1772876219027,1.72642786,1983.6,1983.4,0.001]
[1772876219535,0.49235014,1983.5,1983.3,0.001]
[1772876223139,0.46131865,1983.6,1983.3,0.001]
[1772876223321,0.46131865,1983.6,1983.3,0.47539747]
[1772876224512,0.002,1983.7,1983.4,0.47439747]
[1772876227851,0.002,1983.7,1983.5,0.47439747]
[1772876228850,0.002,1983.8,1983.5,0.47439747]
[1772876229946,0.002,1983.8,1983.6,1.26033474]
[1772876230155,0.002,1983.8,1983.7,0.47439747]
[1772876232452,0.002,1983.8,1983.7,1.73466868]
[1772876235256,0.002,1983.8,1983.7,0.47439747]
[1772876242372,0.002,1983.8,1983.7,1.73466868]
[1772876243270,0.46331865,1983.8,1983.6,1.26028748]
[1772876243570,0.002,1983.7,1983.6,1.73468495]
[1772876250474,0.002,1983.8,1983.6,1.73468495]
[1772876255072,0.002,1984.0,1983.7,0.49501352]
[1772876255579,0.002,1984.0,1983.7,0.49601352]
[1772876256580,0.002,1983.8,1983.7,0.49601352]
[1772876256783,0.002,1984.0,1983.8,0.49501352]
[1772876257688,0.002,1984.0,1983.8,1.75519869]
[1772876257891,0.002,1984.0,1983.8,0.49501352]
[1772876258266,0.002,1984.0,1983.9,0.49501352]
[1772876264574,0.002,1984.0,1983.8,1.75518505]
[1772876269231,0.002,1983.9,1983.8,1.75518505]
[1772876269506,0.002,1984.0,1983.8,1.75518505]
[1772876272702,0.002,1984.0,1983.9,0.49501352]
[1772876273419,0.48141621,1984.2,1983.9,0.49501352]
[1772876275627,0.48141621,1984.2,1983.8,1.7551696]
[1772876281031,0.48141621,1984.2,1983.9,0.001]
[1772876281325,0.002,1984.1,1983.9,0.001]
[1772876281530,0.002,1984.1,1983.9,0.46841351]
[1772876283832,0.45411669,1984.0,1983.8,0.001]
[1772876284001,0.45411669,1984.0,1983.7,0.001]
[1772876286832,0.45411669,1983.8,1983.6,0.001]
[1772876287031,0.45411669,1983.8,1983.5,0.001]
[1772876287833,0.45411669,1983.7,1983.5,0.001]
[1772876290809,0.002,1984.1,1983.5,0.48717431]
[1772876291013,0.45411669,1984.0,1983.5,0.48717431]
[1772876292828,1.71420053,1984.0,1983.6,0.48617431]
[1772876293208,0.45411669,1983.9,1983.6,0.48617431]
[1772876294314,0.45411669,1983.9,1983.6,0.48717431]
[1772876294510,0.45611669,1983.9,1983.6,1.74749196]
[1772876295434,0.002,1983.9,1983.7,0.48617431]
[1772876297024,0.45611669,1983.9,1983.6,0.48717431]
[1772876297715,0.45611669,1983.9,1983.6,0.001]
[1772876298034,0.45411669,1983.8,1983.5,0.001]
[1772876299107,0.002,1983.9,1983.6,0.48617431]
[1772876299323,1.26215212,1983.9,1983.6,0.48617431]
[1772876299532,1.71626881,1983.9,1983.6,0.48617431]
[1772876299923,0.45411669,1983.8,1983.5,0.48717431]
[1772876301534,0.45411669,1983.8,1983.5,1.74756562]
[1772876301736,1.71626881,1983.9,1983.6,0.48617431]
[1772876302441,0.45611669,1983.9,1983.6,0.48617431]
[1772876302906,0.002,1983.9,1983.6,0.48617431]
[1772876304553,0.002,1983.9,1983.7,0.48617431]
[1772876306435,0.002,1983.9,1983.7,1.74739257]
[1772876306641,0.002,1983.9,1983.8,0.48617431]
[1772876308436,0.002,1983.9,1983.7,0.48717431]
[1772876311948,0.002,1983.9,1983.8,1.74762968]
[1772876312123,0.002,1984.0,1983.9,0.487422]
[1772876319272,0.002,1984.2,1984.0,0.487422]
[1772876321260,0.002,1984.5,1984.3,0.487422]
[1772876323438,0.002,1984.5,1984.3,1.74725432]
[1772876330170,0.002,1984.5,1984.4,0.487422]
[1772876330368,0.002,1984.6,1984.4,0.487422]
[1772876330554,0.002,1984.6,1984.4,1.74724768]
[1772876331773,0.002,1984.5,1984.4,1.74724768]
[1772876331970,0.002,1984.6,1984.4,1.74724768]
[1772876332546,0.002,1984.6,1984.5,0.487422]
[1772876332747,0.002,1984.6,1984.2,5.52712213]
[1772876332949,0.002,1984.6,1984.3,0.487422]
[1772876334059,0.49099113,1984.6,1984.1,0.487422]
[1772876334377,0.49099113,1984.6,1984.2,1.358]
[1772876334768,0.48899113,1984.5,1984.1,1.26001355]
[1772876335586,0.48899113,1984.5,1984.1,1.74743555]
[1772876338677,0.46323885,1984.4,1984.1,0.487422]
[1772876338979,0.46323885,1984.4,1984.0,3.10349352]
[1772876340058,0.46323885,1984.4,1984.0,3.10354598]
[1772876340881,1.72310566,1984.4,1984.0,1.84347616]
[1772876341069,0.46323885,1984.4,1984.0,3.10355421]
[1772876341269,0.46323885,1984.4,1984.1,0.49647616]
[1772876342194,0.49034713,1984.6,1984.2,0.49458365]
[1772876342361,0.002,1984.6,1984.2,0.49458365]
[1772876342560,0.49034713,1984.6,1984.2,0.49458365]
[1772876342959,0.002,1984.6,1984.2,0.49458365]
[1772876343858,0.002,1984.4,1984.2,0.49458365]
[1772876344386,0.002,1984.5,1984.3,1.75447378]
[1772876345261,0.002,1984.5,1984.4,0.49458365]
[1772876346172,0.002,1984.5,1984.4,1.75441029]
[1772876346684,0.002,1984.5,1984.4,0.49458365]
[1772876346884,0.002,1984.5,1984.2,1.75453728]
[1772876347062,0.002,1984.5,1984.3,0.49458365]
[1772876349689,0.002,1984.5,1984.3,1.75446175]
[1772876352192,0.48834713,1984.4,1984.1,0.001]
[1772876355192,1.74818124,1984.4,1984.1,0.001]
[1772876355401,0.48834713,1984.4,1984.1,0.001]
[1772876355898,0.49034713,1984.4,1984.1,0.001]
[1772876356087,0.49034713,1984.4,1984.3,0.001]
[1772876359178,1.75017377,1984.4,1984.3,0.001]
[1772876361803,0.49034713,1984.4,1984.3,0.001]
[1772876362611,1.75017377,1984.4,1984.3,0.001]
[1772876362809,0.49034713,1984.4,1984.3,0.001]
[1772876370098,0.002,1984.4,1984.3,0.001]
[1772876408059,0.49875899,1984.4,1984.3,0.001]
[1772876410984,0.49675899,1984.3,1984.1,0.001]
[1772876414897,1.75664912,1984.3,1984.2,0.001]
[1772876415595,1.75864912,1984.3,1984.2,0.001]
[1772876419440,1.75864912,1984.3,1984.1,0.001]
[1772876420530,0.002,1984.3,1984.1,0.45186713]
[1772876420693,0.002,1984.4,1984.2,0.45086713]
[1772876427715,0.002,1984.4,1984.2,0.45186713]
[1772876427918,0.002,1984.3,1984.2,0.45186713]
[1772876432715,0.002,1984.3,1984.2,0.001]
[1772876434514,0.47291588,1984.3,1984.2,0.001]
[1772876445846,1.73280601,1984.3,1984.2,0.001]
[1772876446249,0.002,1984.3,1984.2,0.001]
[1772876459960,0.002,1984.6,1984.3,0.47792343]
[1772876463656,0.002,1984.6,1984.3,0.47902343]
[1772876463956,0.47165969,1984.5,1984.3,0.0011]
[1772876465643,1.25982664,1984.4,1984.3,0.0011]
[1772876467143,0.002,1984.6,1984.4,0.46653593]
[1772876468038,0.002,1984.6,1984.5,0.46653593]
[1772876468243,0.002,1984.9,1984.7,0.46653593]
[1772876476071,0.001,1984.8,1984.7,0.46653593]
[1772876481456,0.001,1984.8,1984.5,0.46653593]
[1772876481774,0.47165969,1984.8,1984.4,0.0011]
[1772876482161,1.7302959,1984.7,1984.4,0.0011]
[1772876482478,0.47065969,1984.6,1984.4,0.0011]
[1772876485279,1.73040004,1984.6,1984.4,0.0011]
[1772876485479,0.47065969,1984.6,1984.4,0.0011]
[1772876486889,1.73036045,1984.6,1984.4,0.0011]
[1772876487559,1.73036045,1984.6,1984.5,0.001]
[1772876499298,1.25970076,1984.6,1984.5,0.001]
[1772876501568,1.7203824,1984.7,1984.5,0.001]
[1772876505395,0.45869597,1984.6,1984.5,0.001]
[1772876507394,1.71839565,1984.6,1984.5,0.001]
[1772876514115,1.71839565,1984.6,1984.3,0.49185656]
[1772876514483,1.25969968,1984.6,1984.3,0.49185656]
[1772876515513,1.71839565,1984.6,1984.3,0.49185656]
[1772876517028,1.71839565,1984.6,1983.6,0.43375656]
[1772876517029,0.45869597,1984.4,1983.6,0.43375656]
[1772876517187,0.002,1984.7,1983.8,0.49075656]
[1772876517383,1.26163908,1984.7,1983.8,0.49075656]
[1772876517977,1.72033505,1984.7,1983.9,0.49075656]
[1772876518216,0.45869597,1984.6,1983.9,0.49075656]
[1772876519604,0.48411608,1984.4,1983.9,0.49075656]
[1772876521315,0.48411608,1984.4,1983.6,0.49206785]
[1772876522327,1.71864202,1984.3,1983.6,0.49206785]
[1772876522627,0.45875189,1984.2,1984.0,0.001]
[1772876524120,0.45875189,1984.2,1983.8,0.3199088]
[1772876524412,1.26001713,1984.1,1983.8,0.3199088]
[1772876525086,1.25976316,1984.5,1983.8,0.1199088]
[1772876525421,2.68809302,1984.5,1983.9,0.1199088]
[1772876525625,0.45875189,1984.4,1983.9,0.1199088]
[1772876525990,2.22934113,1984.5,1983.9,0.1199088]
[1772876525991,0.45875189,1984.2,1983.9,0.1199088]
[1772876526207,0.45875189,1984.2,1983.7,30.83029497]
[1772876526625,1.26001713,1984.1,1983.7,30.83029497]
[1772876529700,1.76001713,1984.1,1983.7,30.83029497]
[1772876529900,0.5,1984.0,1983.7,30.83029497]
[1772876530707,5.54006854,1984.2,1983.7,30.83029497]
[1772876530901,0.5,1984.1,1983.7,30.83029497]
[1772876531119,5.5388059,1984.6,1983.7,32.09051753]
[1772876531412,0.5,1984.5,1983.7,32.09051753]
[1772876531627,0.002,1984.7,1983.7,32.09051753]
[1772876531806,1.26164535,1984.7,1983.7,32.47920194]
[1772876531998,1.26164535,1984.7,1983.7,32.09051753]
[1772876532199,1.26164535,1984.7,1983.7,32.47920194]
[1772876532400,1.26164535,1984.7,1983.7,32.09051753]
[1772876532796,1.26164535,1984.7,1983.9,1.26014416]
[1772876535103,0.001,1984.6,1983.9,1.26014416]
[1772876538453,0.002,1985.0,1983.9,1.26014416]
[1772876538945,0.002,1985.0,1983.9,1.64882857]
[1772876546640,0.002,1985.0,1984.1,2.61889243]
[1772876546841,0.001,1984.9,1984.2,1.356]
[1772876548965,0.001,1984.9,1984.2,1.25995363]
[1772876548966,0.501,1984.9,1984.2,1.25995363]
[1772876549264,0.501,1984.9,1984.3,1.36]
[1772876554070,0.5,1984.8,1984.4,1.25982664]
[1772876554778,0.5,1984.8,1984.2,5.0397097]
[1772876554939,0.5,1984.8,1984.3,1.367]
[1772876556369,0.5,1984.7,1984.3,2.62682914]
[1772876557251,0.5,1984.7,1984.3,1.367]
[1772876557450,0.5,1984.7,1984.3,2.62687746]
[1772876558678,0.5,1984.7,1984.5,0.001]
[1772876570650,0.502,1984.8,1984.5,0.001]
[1772876571982,0.502,1984.8,1984.6,0.001]
[1772876577782,0.5,1984.7,1984.6,0.001]
[1772876584085,1.75963621,1984.7,1984.6,0.001]
[1772876584265,1.25963621,1984.7,1984.5,0.001]
[1772876584468,1.25963621,1984.7,1984.4,0.001]
[1772876584469,0.5,1984.6,1984.4,0.001]
[1772876591400,0.4995,1984.4,1984.2,0.001]
[1772876593799,0.4995,1984.5,1984.2,0.002]
[1772876594893,1.75915168,1984.7,1984.3,0.001]
[1772876595102,0.4995,1984.6,1984.3,0.001]
[1772876596168,0.002,1984.5,1984.3,0.001]
[1772876596506,0.5015,1984.5,1984.3,0.001]
[1772876603502,0.48185808,1984.6,1984.3,0.001]
[1772876603892,0.002,1984.6,1984.4,0.45419448]
[1772876606388,0.48185808,1984.6,1984.3,0.001]
[1772876607884,0.48185808,1984.6,1984.4,0.001]
[1772876608116,0.002,1984.5,1984.4,0.001]
[1772876608917,0.47985808,1984.7,1984.4,0.45519448]
[1772876609911,0.47985808,1984.7,1984.4,0.001]
[1772876610518,1.73950965,1984.7,1984.4,0.001]
[1772876611519,0.47985808,1984.6,1984.4,0.001]
[1772876612621,1.7395713,1984.6,1984.4,0.001]
[1772876614221,0.47985808,1984.6,1984.4,0.001]
[1772876616224,1.73955926,1984.6,1984.4,0.001]
[1772876617023,0.47985808,1984.6,1984.4,0.001]
[1772876619726,0.47985808,1984.6,1984.5,0.001]
[1772876620295,0.48185808,1984.6,1984.5,0.001]
[1772876621921,0.002,1984.6,1984.5,0.001]
[1772876623125,0.47110185,1984.6,1984.5,0.001]
[1772876626923,0.002,1984.6,1984.5,0.001]
[1772876634207,0.47110185,1984.6,1984.5,0.001]
[1772876639349,1.73080153,1984.6,1984.5,0.001]
[1772876641266,0.47110185,1984.6,1984.5,0.001]
[1772876644866,0.002,1984.8,1984.6,0.46312661]
[1772876645042,0.002,1984.8,1984.6,0.14829396]
[1772876653844,0.002,1984.8,1984.6,1.4079698]
[1772876654046,0.002,1984.8,1984.6,0.14829396]
[1772876654369,0.45870768,1984.8,1984.5,0.001]
[1772876654947,0.45870768,1984.8,1984.5,0.18466735]